fUST/lending_fUST_20240909
["ID","MTS","AMOUNT","RATE_DAILY","PERIOD"]
[337590875,1725870652182,-988.1,0.00040761,30]
[337590876,1725870652207,-500.0,0.00040761,30]
[337590877,1725870652235,-500.0,0.00040761,30]
[337590878,1725870652260,-502.79669486,0.00040761,30]
[337590879,1725870652286,-500.0,0.00040761,30]
[337590880,1725870652313,-346.96889847,0.00040761,30]
[337590881,1725870653435,-400.0,0.00037219,2]
[337590882,1725870653445,-11152.57725719,0.0003722,2]
[337590883,1725870653455,-1000.0,0.0004,7]
[337590884,1725870653465,-189.20196424,0.00040065,2]
[337590885,1725870653475,-189.20196424,0.00040073,2]
[337590886,1725870653484,-217.53207558,0.00040173,2]
[337590887,1725870653494,-1379.30832606,0.00040236,28]
[337590888,1725870653504,-1000.0,0.00040237,2]
[337590889,1725870653513,-779.02,0.00040263,3]
[337590890,1725870653523,-246.31,0.00040263,3]
[337590891,1725870653532,-738.95,0.00040263,3]
[337590892,1725870653542,-539.62070904,0.00040266,2]
[337590893,1725870653552,-500.0,0.00040272,30]
[337590894,1725870653561,-523.59,0.00040272,30]
[337590895,1725870653571,-6052.53632465,0.00040273,5]
[337590896,1725870654053,-150.0,0.0004,120]
[337590897,1725870654063,-47776.55687143,0.00040273,5]
[337590898,1725870654278,-927.071673,0.00040273,5]
[337590899,1725870654289,-59324.42927492,0.00040273,5]
[337590900,1725870654299,-44280.00483752,0.00040327,5]
[337590901,1725870654310,-16215.40187997,0.00040327,5]
[337590902,1725870654936,-1.48268609,0.00040327,5]
[337590931,1725871595138,-244.35667249,0.00035445,2]
[337590934,1725871646148,-64.18222061,0.00035445,2]
[337590935,1725871646170,-3000.0,0.000398,20]
[337590936,1725871646191,-198.688948,0.00039879,2]
[337590937,1725871646212,-500.0,0.00039879,30]
[337590938,1725871646234,-782.8720481,0.00039879,30]
[337590947,1725871756185,1632.7094745,0.00034823,2]
[337590949,1725871783535,500.0,0.00034823,2]
[337590950,1725871814794,500.0,0.00034823,30]
[337590962,1725871832231,-152.11913654,0.00039751,2]
[337590964,1725871832241,-284.21609242,0.0003977,2]
[337590968,1725871832288,-736.23740997,0.0003977,2]
[337591007,1725871838206,-186.44128286,0.0003977,2]
[337591008,1725871838217,-789.79,0.0003986,3]
[337591009,1725871838229,-394.9,0.0003986,3]
[337591010,1725871838241,-197.45,0.0003986,3]
[337591011,1725871838251,-592.36,0.0003986,3]
[337591012,1725871838264,-246.32,0.0003986,3]
[337591013,1725871838275,-1055.37,0.00039869,30]
[337591014,1725871838286,-572.58,0.00039869,30]
[337591015,1725871838295,-18128.7337518,0.0003987,5]
[337591028,1725871838509,-16117.09244839,0.0003987,5]
[337591076,1725871840324,-891.1765,0.0003987,5]
[337591092,1725871843224,-27.15074139,0.0003987,5]
[337591093,1725871843247,-1754.8937024,0.0003987,5]
[337591154,1725871855965,-31.01509088,0.00039869,3]
[337591155,1725871855979,-632.09,0.00039869,3]
[337591156,1725871871800,938.60242926,0.00039,2]
[337591158,1725871883668,200.0,0.00039,2]
[337591188,1725872542823,151.0,0.0003,120]
[337591193,1725872744151,-1388.41915579,0.00036054,2]
[337591195,1725872754113,-472.51634921,0.00036054,2]
[337591196,1725872754135,-1518.626661,0.00036141,2]
[337591197,1725872754156,-1518.626661,0.00036826,2]
[337591198,1725872754177,-124.46522702,0.00036996,2]
[337591200,1725872848109,-400.0,0.00037,5]
[337591201,1725872848131,-1518.626661,0.00037511,2]
[337591202,1725872848162,-298.0,0.00039408,30]
[337591203,1725872848191,-631.80824093,0.00039409,2]
[337591206,1725872955233,-558.01163057,0.00039359,2]
[337591207,1725872966102,-2665.71362227,0.00039359,2]
[337591208,1725872966124,-1857.47424282,0.00039359,2]
[337591209,1725872966146,-506.29497582,0.00039362,2]
[337591210,1725872996109,2205.13279221,0.00039252,2]
[337591244,1725873038442,-509.02,0.00039242,3]
[337591245,1725873038452,-173.47,0.00039242,3]
[337591246,1725873038462,-172.54,0.00039242,3]
[337591247,1725873038473,-235.84,0.00039251,2]
[337591248,1725873038482,-500.0,0.00039251,15]
[337591249,1725873038491,-500.812646,0.00039251,7]
[337591250,1725873038500,-500.0,0.00039251,7]
[337591251,1725873038510,-382.33368346,0.00039251,15]
[337591252,1725873038519,-370.48223036,0.00039251,7]
[337591253,1725873038529,-135756.56830968,0.00039252,2]
[337591254,1725873038539,-2717.43027699,0.00039362,2]
[337591255,1725873038548,-3223.72525281,0.00039364,2]
[337591256,1725873038557,-3223.72525281,0.00039367,2]
[337591257,1725873038567,-3223.72525281,0.00039369,2]
[337591258,1725873038576,-678.64,0.0003945,3]
[337591259,1725873038585,-339.32,0.0003945,3]
[337591260,1725873038594,-169.66,0.0003945,3]
[337591261,1725873038603,-231.02812483,0.00039458,15]
[337591262,1725873038613,-185.13124537,0.00039458,15]
[337591263,1725873038622,-500.0,0.00039458,15]
[337591264,1725873038631,-500.0,0.00039458,15]
[337591265,1725873038641,-358.75720041,0.00039458,15]
[337591266,1725873038650,-233.74782927,0.00039458,15]
[337591267,1725873038660,-71901.0322983,0.00039459,5]
[337591268,1725873038669,-287604.129193,0.0003946,5]
[337591269,1725873038678,-139256.561347,0.00039469,5]
[337591270,1725873038687,-3585.28,0.00039469,30]
[337591271,1725873038697,-7668.42,0.00039469,30]
[337591272,1725873038707,-1315.99,0.00039469,30]
[337591273,1725873038724,-500.0,0.00039469,30]
[337591274,1725873038734,-1549.17,0.00039469,30]
[337591275,1725873038743,-1317.42,0.00039469,30]
[337591276,1725873038753,-1577.18,0.00039469,30]
[337591277,1725873038764,-1106.37,0.00039469,30]
[337591278,1725873038774,-500.0,0.00039469,30]
[337591279,1725873038784,-500.0,0.00039469,30]
[337591280,1725873038796,-222.0,0.0003947,2]
[337591281,1725873038806,-278513.122695,0.0003947,5]
[337591282,1725873038815,-500.0,0.00039473,5]
[337591283,1725873038824,-502.23532653,0.00039479,30]
[337591284,1725873038834,-5693.65,0.00039479,30]
[337591285,1725873038844,-500.0,0.00039479,30]
[337591286,1725873038854,-10460.08,0.00039479,30]
[337591287,1725873038864,-5316.58,0.00039479,30]
[337591288,1725873038874,-1229.05,0.00039479,30]
[337591289,1725873038884,-1782.97,0.00039479,30]
[337591290,1725873038894,-1496.29,0.00039479,30]
[337591291,1725873038906,-543.05,0.00039479,30]
[337591292,1725873038915,-500.0,0.00039479,30]
[337591293,1725873038925,-500.0,0.00039479,30]
[337591294,1725873038934,-6570.01,0.00039479,30]
[337591295,1725873038944,-6570.01,0.00039479,30]
[337591296,1725873038955,-2068.56,0.00039479,30]
[337591297,1725873038964,-500.0,0.00039479,30]
[337591298,1725873038975,-272.50098039,0.00039479,30]
[337591299,1725873038984,-500.0,0.00039479,30]
[337591300,1725873038993,-2487.04,0.00039479,30]
[337591301,1725873039002,-39246.37,0.00039479,18]
[337591302,1725873039011,-2237.3,0.00039479,21]
[337591306,1725873039200,-10990.42849999,0.0003948,2]
[337591307,1725873039209,-94490.45430341,0.0003948,2]
[337591309,1725873039219,-1098.90154422,0.00039554,2]
[337591311,1725873039229,-761.1085198,0.00039648,2]
[337591313,1725873039239,-34550.42369425,0.00039648,120]
[337591314,1725873039248,-25268.13996166,0.0003966,2]
[337591316,1725873039261,-68018.24457337,0.0003966,2]
[337591318,1725873039270,-305.011856,0.0003966,14]
[337591320,1725873039280,-151.0,0.0003966,14]
[337591321,1725873039290,-305.011856,0.0003966,14]
[337591323,1725873039299,-151.0,0.0003966,14]
[337591324,1725873039308,-151.0,0.0003966,14]
[337591325,1725873039317,-281.832942,0.0003966,14]
[337591326,1725873039326,-151.0,0.0003966,14]
[337591327,1725873039336,-281.832942,0.0003966,14]
[337591328,1725873039346,-273.308969,0.0003966,14]
[337591330,1725873039355,-3585.28,0.00039743,30]
[337591332,1725873039365,-7668.42,0.00039743,30]
[337591334,1725873039374,-1315.99,0.00039743,30]
[337591336,1725873039384,-1549.17,0.00039743,30]
[337591338,1725873039393,-1317.42,0.00039743,30]
[337591340,1725873039402,-1577.18,0.00039743,30]
[337591342,1725873039411,-1106.37,0.00039743,30]
[337591344,1725873039421,-500.0,0.00039743,30]
[337591346,1725873039429,-481.14,0.00039743,30]
[337591348,1725873039438,-169.59,0.00039748,7]
[337591350,1725873039447,-170.81,0.00039748,7]
[337591352,1725873039457,-151.0,0.00039748,14]
[337591353,1725873039466,-151.0,0.00039748,14]
[337591355,1725873039483,-305.011856,0.00039748,14]
[337591357,1725873039493,-305.011856,0.00039748,14]
[337591359,1725873039502,-305.011856,0.00039748,14]
[337591361,1725873039511,-305.011856,0.00039748,14]
[337591363,1725873039521,-151.0,0.00039748,14]
[337591365,1725873039530,-151.0,0.00039748,14]
[337591367,1725873039540,-151.975802,0.00039748,14]
[337591369,1725873039549,-281.832942,0.00039748,14]
[337591371,1725873039559,-281.832942,0.00039748,14]
[337591373,1725873039568,-151.0,0.00039748,14]
[337591375,1725873039577,-281.832942,0.00039748,14]
[337591377,1725873039586,-151.0,0.00039748,14]
[337591379,1725873039596,-281.832942,0.00039748,14]
[337591381,1725873039606,-273.308969,0.00039748,14]
[337591383,1725873039615,-273.308969,0.00039748,14]
[337591385,1725873039624,-5693.65,0.00039753,30]
[337591386,1725873039634,-500.0,0.00039753,30]
[337591387,1725873039644,-10460.08,0.00039753,30]
[337591388,1725873039653,-5316.58,0.00039753,30]
[337591389,1725873039662,-1229.05,0.00039753,30]
[337591390,1725873039672,-1782.97,0.00039753,30]
[337591391,1725873039681,-1496.29,0.00039753,30]
[337591392,1725873039691,-500.0,0.00039753,30]
[337591393,1725873039700,-500.0,0.00039753,30]
[337591394,1725873039714,-2068.56,0.00039753,30]
[337591395,1725873039725,-500.0,0.00039753,30]
[337591396,1725873039735,-2487.04,0.00039753,30]
[337591397,1725873039747,-39246.37,0.00039753,18]
[337591399,1725873039757,-2237.3,0.00039753,21]
[337591401,1725873039768,-6570.01,0.00039757,30]
[337591404,1725873039779,-6570.01,0.00039758,30]
[337591406,1725873039791,-3592.61909344,0.00039758,30]
[337591421,1725873040516,-500.0,0.00039251,2]
[337591422,1725873040528,-273.308969,0.0003966,14]
[337591423,1725873040538,-273.308969,0.00039748,14]
[337591424,1725873040549,-1283.86907839,0.00039758,30]
[337591486,1725873043561,-862.73,0.00039242,3]
[337591487,1725873043571,-500.0,0.00039251,2]
[337591488,1725873043580,-354.54309633,0.00039251,2]
[337591489,1725873043589,-1681.54712788,0.00039479,30]
[337591490,1725873043601,-1319.80287212,0.00039479,30]
[337591491,1725873043611,-273.308969,0.00039748,14]
[337591492,1725873043621,-403.10637971,0.00039753,30]
[337591505,1725873134716,151.0,0.0003,120]
[337591506,1725873161773,-33554.2870058,0.00034431,2]
[337591536,1725873601042,-222.0,0.00034293,2]
[337591537,1725873602470,-178.0,0.00034293,2]
[337591538,1725873603445,193.0,0.00034293,30]
[337591539,1725873665548,-266.0,0.00033908,2]
[337591540,1725873667428,-582.56036808,0.00033908,2]
[337591541,1725873671962,-266.0,0.00034293,2]
[337591542,1725873671988,-134.0,0.00034293,2]
[337591543,1725873677795,-266.0,0.00034293,2]
[337591547,1725873752412,-165.7970847,0.00033623,2]
[337591549,1725873780288,-0.8695813,0.00033623,2]
[337591550,1725873780314,-165.7970847,0.0003377,2]
[337591551,1725873780337,-266.0,0.00034293,2]
[337591552,1725873780359,-9.333334,0.00034293,30]
[337591553,1725873794330,-183.666666,0.00034293,30]
[337591554,1725873795545,-400.0,0.00034293,2]
[337591555,1725873796755,-0.333334,0.00034293,30]
[337591556,1725873819890,-168.340793,0.00034294,2]
[337591557,1725873822549,-168.340793,0.00034335,120]
[337591558,1725873827040,-273.659207,0.00034294,2]
[337591559,1725873834299,-33554.2870058,0.00034269,2]
[337591561,1725873843667,-8419.2605284,0.00030931,62]
[337591562,1725873844652,-412.1047633,0.00030931,2]
[337591563,1725873845583,-400.0,0.00034293,2]
[337591565,1725873947152,-400.0,0.00034293,2]
[337591566,1725873947174,-3.92592886,0.00034294,2]
[337591567,1725873959099,-231.22017185,0.00034294,2]
[337591569,1725874041100,-160.0,0.00034293,2]
[337591570,1725874041121,-222.0,0.00034294,2]
[337591571,1725874041143,-130.64237562,0.00034294,2]
[337591573,1725874098567,1871.09195034,0.00025,2]
[337591574,1725874120361,19989.51838598,0.000275,2]
[337591575,1725874122316,36782.16402003,0.00020377,2]
[337591576,1725874123975,113583.93913109,0.0001999,2]
[337591577,1725874124228,155.53509166,0.0002,2]
[337591596,1725874165407,-1205.66220693,0.0003212,10]
[337591597,1725874165433,-24900.0,0.00032361,2]
[337591598,1725874165457,-22884.9578534,0.00032877,2]
[337591599,1725874165481,-2010.62441506,0.00034235,2]
[337591600,1725874165502,-168.340793,0.00034335,2]
[337591601,1725874165526,-178.921374,0.00034347,2]
[337591602,1725874165549,-93286.38547903,0.000344,2]
[337591603,1725874165570,-166.666666,0.0003454,2]
[337591604,1725874165601,-178.921374,0.00034705,2]
[337591605,1725874165623,-178.921374,0.00035063,2]
[337591606,1725874165645,-178.921374,0.00035421,2]
[337591607,1725874165668,-166.666666,0.00035456,2]
[337591608,1725874165691,-2010.62441506,0.00035524,2]
[337591609,1725874165714,-278.95827,0.00035609,2]
[337591610,1725874165737,-278.95827,0.00035619,2]
[337591611,1725874165762,-278.95827,0.00035628,2]
[337591612,1725874165785,-278.95827,0.00035637,2]
[337591613,1725874165809,-278.95827,0.00035647,2]
[337591614,1725874165832,-278.95827,0.00035656,2]
[337591615,1725874165855,-278.95827,0.00035665,2]
[337591616,1725874165877,-278.95827,0.00035675,2]
[337591617,1725874165900,-278.95827,0.00035684,2]
[337591618,1725874165922,-278.95827,0.00035694,2]
[337591619,1725874165943,-278.95827,0.00035703,2]
[337591620,1725874165965,-278.95827,0.00035712,2]
[337591621,1725874165989,-278.95827,0.00035722,2]
[337591622,1725874166012,-278.95827,0.00035731,2]
[337591623,1725874166036,-278.95827,0.0003574,2]
[337591624,1725874166058,-278.95827,0.0003575,2]
[337591625,1725874166080,-278.95827,0.00035759,2]
[337591626,1725874166105,-278.95827,0.00035769,2]
[337591627,1725874166127,-278.95827,0.00035778,2]
[337591628,1725874166148,-178.921374,0.00035779,2]
[337591629,1725874166171,-278.95827,0.00035787,2]
[337591630,1725874166193,-150.112233,0.00036,9]
[337591631,1725874166214,-150.112233,0.000361,9]
[337591632,1725874166235,-178.921374,0.00036137,2]
[337591633,1725874166255,-166.666666,0.00036373,2]
[337591634,1725874166277,-2010.62441506,0.00036814,2]
[337591635,1725874166298,-166.666666,0.0003729,2]
[337591636,1725874166318,-641.82724953,0.00038,10]
[337591637,1725874166342,-1665.88121802,0.00038,120]
[337591638,1725874166364,-2010.62441506,0.00038103,2]
[337591639,1725874166384,-166.666666,0.00038206,2]
[337591640,1725874166407,-194.78,0.00038336,120]
[337591641,1725874166429,-235.84,0.00038345,2]
[337591642,1725874166449,-231.02812483,0.00038345,15]
[337591643,1725874166472,-500.0,0.00038345,15]
[337591644,1725874166492,-185.13124537,0.00038345,15]
[337591645,1725874166513,-358.75720041,0.00038345,15]
[337591646,1725874166536,-234.39226207,0.00038345,15]
[337591647,1725874166558,-500.0,0.00038345,15]
[337591648,1725874166580,-500.0,0.00038345,15]
[337591649,1725874166602,-500.812646,0.00038345,7]
[337591650,1725874166624,-500.0,0.00038345,15]
[337591651,1725874166645,-310.51522025,0.00038345,15]
[337591652,1725874166667,-437.42837394,0.00038345,15]
[337591653,1725874166689,-523.80840956,0.00038345,7]
[337591654,1725874166711,-500.0,0.00038345,15]
[337591655,1725874166734,-500.0,0.00038345,15]
[337591656,1725874166756,-523.80840956,0.00038345,7]
[337591657,1725874166779,-500.0,0.00038345,15]
[337591658,1725874166801,-500.0,0.00038345,15]
[337591659,1725874166824,-523.80840956,0.00038345,7]
[337591660,1725874166847,-500.0,0.00038345,15]
[337591661,1725874166869,-500.0,0.00038345,15]
[337591662,1725874166892,-523.80840956,0.00038345,7]
[337591663,1725874166914,-500.0,0.00038345,15]
[337591664,1725874166936,-500.0,0.00038345,15]
[337591665,1725874166962,-523.80840956,0.00038345,7]
[337591666,1725874166984,-500.0,0.00038345,15]
[337591667,1725874167006,-500.0,0.00038345,15]
[337591668,1725874167028,-523.80840956,0.00038345,7]
[337591669,1725874167055,-500.0,0.00038345,15]
[337591670,1725874167078,-500.0,0.00038345,15]
[337591671,1725874167101,-523.80840956,0.00038345,7]
[337591672,1725874167123,-500.0,0.00038345,15]
[337591673,1725874167144,-500.0,0.00038345,15]
[337591674,1725874167166,-523.80840956,0.00038345,7]
[337591675,1725874167355,-523.80840956,0.00038345,7]
[337591676,1725874167378,-500.0,0.00038345,15]
[337591677,1725874167401,-500.0,0.00038345,15]
[337591678,1725874167427,-500.0,0.00038345,15]
[337591679,1725874167450,-523.80840956,0.00038345,7]
[337591680,1725874167474,-500.0,0.00038345,15]
[337591681,1725874167497,-523.80840956,0.00038345,7]
[337591682,1725874167519,-500.0,0.00038345,15]
[337591683,1725874167541,-523.80840956,0.00038345,7]
[337591684,1725874167563,-500.0,0.00038345,15]
[337591685,1725874167591,-500.0,0.00038345,15]
[337591686,1725874167614,-523.80840956,0.00038345,7]
[337591687,1725874167635,-500.0,0.00038345,15]
[337591688,1725874167657,-345.0,0.00038345,15]
[337591689,1725874167680,-523.80840956,0.00038345,7]
[337591690,1725874167702,-500.0,0.00038345,15]
[337591691,1725874167723,-500.0,0.00038345,15]
[337591692,1725874167746,-523.80840956,0.00038345,7]
[337591693,1725874167767,-500.0,0.00038345,15]
[337591694,1725874167794,-523.80840956,0.00038345,7]
[337591695,1725874167818,-523.80840956,0.00038345,7]
[337591696,1725874167840,-500.0,0.00038345,15]
[337591697,1725874167862,-523.80840956,0.00038345,7]
[337591698,1725874167883,-500.0,0.00038345,15]
[337591699,1725874167911,-523.80840956,0.00038345,7]
[337591700,1725874167937,-500.0,0.00038345,15]
[337591701,1725874167960,-523.80840956,0.00038345,7]
[337591702,1725874167983,-500.0,0.00038345,15]
[337591703,1725874168006,-523.80840956,0.00038345,7]
[337591704,1725874168028,-523.80840956,0.00038345,7]
[337591705,1725874168050,-500.0,0.00038345,15]
[337591706,1725874168072,-523.80840956,0.00038345,7]
[337591707,1725874168094,-500.0,0.00038345,15]
[337591708,1725874168115,-523.80840956,0.00038345,7]
[337591709,1725874168136,-500.0,0.00038345,15]
[337591710,1725874168157,-500.0,0.00038345,15]
[337591711,1725874168179,-523.80840956,0.00038345,7]
[337591712,1725874168201,-500.0,0.00038345,15]
[337591713,1725874168225,-523.80840956,0.00038345,7]
[337591714,1725874168247,-523.80840956,0.00038345,7]
[337591715,1725874168268,-500.0,0.00038345,15]
[337591716,1725874168290,-523.80840956,0.00038345,7]
[337591717,1725874168311,-500.0,0.00038345,15]
[337591718,1725874168333,-523.80840956,0.00038345,7]
[337591719,1725874168358,-500.0,0.00038345,15]
[337591720,1725874168379,-523.80840956,0.00038345,7]
[337591721,1725874168400,-500.0,0.00038345,15]
[337591722,1725874168422,-523.80840956,0.00038345,7]
[337591723,1725874168444,-500.0,0.00038345,15]
[337591724,1725874168466,-523.80840956,0.00038345,7]
[337591725,1725874168487,-500.0,0.00038345,15]
[337591726,1725874168510,-523.80840956,0.00038345,7]
[337591727,1725874168531,-523.80840956,0.00038345,7]
[337591728,1725874168555,-500.0,0.00038345,15]
[337591729,1725874168579,-523.80840956,0.00038345,7]
[337591730,1725874168604,-500.0,0.00038345,15]
[337591731,1725874168632,-523.80840956,0.00038345,7]
[337591732,1725874168655,-500.0,0.00038345,15]
[337591733,1725874168677,-523.80840956,0.00038345,7]
[337591734,1725874168700,-500.0,0.00038345,15]
[337591735,1725874168722,-523.80840956,0.00038345,7]
[337591736,1725874168745,-523.80840956,0.00038345,7]
[337591737,1725874168770,-523.80840956,0.00038345,7]
[337591738,1725874168794,-523.80840956,0.00038345,7]
[337591739,1725874168820,-500.0,0.00038345,15]
[337591740,1725874168842,-523.80840956,0.00038345,7]
[337591741,1725874168865,-500.0,0.00038345,15]
[337591742,1725874168889,-523.80840956,0.00038345,7]
[337591743,1725874168913,-523.80840956,0.00038345,7]
[337591744,1725874168936,-500.0,0.00038345,15]
[337591745,1725874168960,-523.80840956,0.00038345,7]
[337591746,1725874168982,-500.0,0.00038345,15]
[337591747,1725874169006,-523.80840956,0.00038345,7]
[337591748,1725874169029,-477.05583045,0.00038345,15]
[337591749,1725874169052,-523.80840956,0.00038345,7]
[337591750,1725874169074,-500.0,0.00038345,15]
[337591751,1725874169102,-500.0,0.00038345,15]
[337591752,1725874169124,-523.80840956,0.00038345,7]
[337591753,1725874169145,-500.0,0.00038345,15]
[337591754,1725874169167,-523.80840956,0.00038345,7]
[337591755,1725874169189,-500.0,0.00038345,15]
[337591756,1725874169212,-523.80840956,0.00038345,7]
[337591757,1725874169234,-523.80840956,0.00038345,7]
[337591758,1725874169256,-523.80840956,0.00038345,7]
[337591759,1725874169278,-523.80840956,0.00038345,7]
[337591760,1725874169299,-523.80840956,0.00038345,7]
[337591761,1725874169322,-523.80840956,0.00038345,7]
[337591762,1725874169352,-523.80840956,0.00038345,7]
[337591763,1725874169375,-523.80840956,0.00038345,7]
[337591764,1725874169400,-513.02411877,0.00038345,7]
[337591765,1725874169424,-513.02411877,0.00038345,7]
[337591766,1725874169446,-513.02411877,0.00038345,7]
[337591767,1725874169468,-513.02411877,0.00038345,7]
[337591768,1725874169491,-513.02411877,0.00038345,7]
[337591769,1725874169513,-513.02411877,0.00038345,7]
[337591770,1725874169535,-513.02411877,0.00038345,7]
[337591771,1725874169558,-513.02411877,0.00038345,7]
[337591772,1725874169580,-513.02411877,0.00038345,7]
[337591773,1725874169602,-513.02411877,0.00038345,7]
[337591774,1725874169625,-513.02411877,0.00038345,7]
[337591775,1725874169646,-500.0,0.00038345,15]
[337591776,1725874169667,-513.02411877,0.00038345,7]
[337591777,1725874169689,-500.0,0.00038345,15]
[337591778,1725874169711,-513.02411877,0.00038345,7]
[337591779,1725874169732,-500.0,0.00038345,15]
[337591780,1725874169756,-513.02411877,0.00038345,7]
[337591781,1725874169779,-500.0,0.00038345,15]
[337591782,1725874169802,-513.02411877,0.00038345,7]
[337591783,1725874169824,-500.0,0.00038345,15]
[337591784,1725874169848,-513.02411877,0.00038345,7]
[337591785,1725874169870,-500.0,0.00038345,15]
[337591786,1725874169901,-513.02411877,0.00038345,7]
[337591787,1725874169933,-513.02411877,0.00038345,7]
[337591788,1725874169956,-500.0,0.00038345,15]
[337591789,1725874169980,-513.02411877,0.00038345,7]
[337591790,1725874170003,-500.0,0.00038345,15]
[337591791,1725874170028,-513.02411877,0.00038345,7]
[337591792,1725874170051,-500.0,0.00038345,15]
[337591793,1725874170075,-513.02411877,0.00038345,7]
[337591794,1725874170098,-500.0,0.00038345,15]
[337591795,1725874170121,-500.0,0.00038345,15]
[337591796,1725874170145,-513.02411877,0.00038345,7]
[337591797,1725874170168,-500.0,0.00038345,15]
[337591798,1725874170191,-500.0,0.00038345,15]
[337591799,1725874170214,-513.02411877,0.00038345,7]
[337591800,1725874170236,-500.0,0.00038345,15]
[337591801,1725874170450,-513.02411877,0.00038345,7]
[337591802,1725874170472,-500.0,0.00038345,15]
[337591803,1725874170496,-513.02411877,0.00038345,7]
[337591804,1725874170518,-500.0,0.00038345,15]
[337591805,1725874170541,-513.02411877,0.00038345,7]
[337591806,1725874170562,-500.0,0.00038345,15]
[337591807,1725874170585,-513.02411877,0.00038345,7]
[337591808,1725874170606,-500.0,0.00038345,15]
[337591810,1725874170628,-500.0,0.00038345,15]
[337591811,1725874170650,-513.02411877,0.00038345,7]
[337591812,1725874170672,-500.0,0.00038345,15]
[337591814,1725874170693,-500.0,0.00038345,15]
[337591815,1725874170716,-500.0,0.00038345,15]
[337591816,1725874170738,-500.0,0.00038345,15]
[337591817,1725874170762,-500.0,0.00038345,15]
[337591818,1725874170785,-500.0,0.00038345,15]
[337591819,1725874170808,-513.02411877,0.00038345,7]
[337591820,1725874170832,-513.02411877,0.00038345,7]
[337591821,1725874170855,-513.02411877,0.00038345,7]
[337591822,1725874170878,-500.0,0.00038345,15]
[337591823,1725874170902,-513.02411877,0.00038345,7]
[337591824,1725874170930,-642.66410158,0.00038345,15]
[337591825,1725874170951,-500.0,0.00038345,15]
[337591826,1725874170973,-500.0,0.00038345,15]
[337591827,1725874170994,-500.0,0.00038345,15]
[337591828,1725874171017,-513.02411879,0.00038345,7]
[337591829,1725874171039,-500.0,0.00038345,15]
[337591830,1725874171067,-500.0,0.00038345,15]
[337591831,1725874171092,-500.0,0.00038345,15]
[337591832,1725874171115,-500.0,0.00038345,15]
[337591833,1725874171139,-500.0,0.00038345,15]
[337591834,1725874171163,-500.0,0.00038345,15]
[337591835,1725874171187,-600.0,0.00038345,15]
[337591836,1725874171216,-81447.3220306,0.00038346,4]
[337591837,1725874171731,-634.54,0.0003439,3]
[337591838,1725874171755,-60934.8064524,0.00038346,4]
[337591839,1725874171778,-3389.9704491,0.00038346,4]
[337591840,1725874171801,-462.05,0.00038346,3]
[337591841,1725874171823,-231.03,0.00038346,3]
[337591842,1725874171849,-693.1,0.00038346,3]
[337591843,1725874171870,-1317.42,0.00038356,30]
[337591844,1725874171891,-1577.18,0.00038356,30]
[337591845,1725874171913,-500.0,0.00038356,30]
[337591846,1725874171934,-502.23532653,0.00038356,30]
[337591847,1725874171956,-5693.65,0.00038356,30]
[337591848,1725874171977,-500.0,0.00038356,30]
[337591849,1725874171999,-10460.08,0.00038356,30]
[337591850,1725874172022,-5316.58,0.00038356,30]
[337591851,1725874172042,-1229.05,0.00038356,30]
[337591852,1725874172064,-1496.29,0.00038356,30]
[337591853,1725874172084,-1782.97,0.00038356,30]
[337591854,1725874172106,-500.0,0.00038356,30]
[337591855,1725874172127,-543.05,0.00038356,30]
[337591856,1725874172147,-2068.56,0.00038356,30]
[337591857,1725874172168,-500.0,0.00038356,30]
[337591858,1725874172189,-1818.59,0.00038356,30]